bitfinex/quotes_BTCUSD_20250902
["timestamp","ask_amount","ask_price","bid_price","bid_amount"]
[1756824482347,0.76209412,111670.0,111660.0,0.007]
[1756824482558,1.2502919,111670.0,111660.0,0.007]
[1756824482971,1.0920919,111670.0,111660.0,0.007]
[1756824483175,1.2502519,111670.0,111660.0,0.007]
[1756824483379,1.2512519,111670.0,111660.0,0.017]
[1756824483593,1.36410671,111670.0,111660.0,0.017]
[1756824483799,1.42424671,111670.0,111660.0,0.017]
[1756824484000,1.00233294,111670.0,111660.0,0.017]
[1756824484234,1.42424671,111670.0,111660.0,0.017]
[1756824484433,1.42324671,111670.0,111660.0,0.007]
[1756824484634,1.42324671,111670.0,111660.0,0.018]
[1756824484941,1.42324671,111670.0,111660.0,0.011]
[1756824485083,1.43927094,111670.0,111660.0,0.022]
[1756824485497,0.74634236,111670.0,111660.0,0.022]
[1756824485711,1.26619613,111670.0,111660.0,0.022]
[1756824486573,0.17914725,111640.0,111630.0,0.23162631]
[1756824486945,0.17914725,111640.0,111630.0,0.23182631]
[1756824487155,0.18540172,111640.0,111630.0,0.15828]
[1756824487529,0.18540172,111640.0,111630.0,0.0002]
[1756824487810,0.00625447,111640.0,111630.0,0.1793633]
[1756824488019,0.17914725,111640.0,111630.0,0.00066888]
[1756824488201,0.18840359,111640.0,111630.0,0.01566888]
[1756824489445,0.18840359,111640.0,111630.0,0.19496218]
[1756824489446,0.00925634,111640.0,111630.0,0.19496218]
[1756824489619,0.18840359,111640.0,111630.0,0.01566888]
[1756824490026,0.00925785,111640.0,111630.0,0.19483218]
[1756824490233,0.00925914,111640.0,111630.0,0.19483218]
[1756824490452,0.00925914,111640.0,111630.0,0.77474595]
[1756824490658,0.00925914,111640.0,111630.0,0.77487595]
[1756824490864,0.18214725,111640.0,111630.0,0.77487595]
[1756824491068,0.18840637,111640.0,111630.0,0.01566888]
[1756824491280,0.18840637,111640.0,111630.0,0.17366888]
[1756824491496,0.70728613,111640.0,111630.0,0.17346888]
[1756824491639,0.70728613,111640.0,111630.0,0.01546888]
[1756824492074,0.28537236,111640.0,111630.0,0.01546888]
[1756824492721,0.79862359,111640.0,111630.0,0.01546888]
[1756824492948,0.95666359,111640.0,111630.0,0.01546888]
[1756824493366,1.29666359,111640.0,111630.0,0.01546888]
[1756824493582,1.39693132,111640.0,111630.0,0.01546888]
[1756824493783,1.42896393,111640.0,111630.0,0.01546888]
[1756824494023,1.42796393,111640.0,111630.0,0.00146888]
[1756824494230,1.8508777,111640.0,111630.0,0.00546888]
[1756824494442,1.42896393,111640.0,111630.0,0.00546888]
[1756824494656,1.43999199,111640.0,111630.0,0.00046888]
[1756824495047,1.40895938,111640.0,111630.0,0.00446888]
[1756824495395,1.41096862,111640.0,111630.0,0.00646888]
[1756824495594,1.41096862,111640.0,111630.0,0.00446888]
[1756824495595,1.40270026,111640.0,111630.0,0.00446888]
[1756824495806,1.37930089,111640.0,111630.0,0.00446888]
[1756824496011,1.38130089,111640.0,111630.0,0.00646888]
[1756824496440,1.38114089,111640.0,111630.0,0.00646888]
[1756824496635,1.13192343,111640.0,111630.0,0.00646888]
[1756824497187,0.63940966,111640.0,111630.0,0.00646888]
[1756824497405,0.79716966,111640.0,111630.0,0.00646888]
[1756824497796,0.63940966,111640.0,111630.0,0.00646888]
[1756824498059,0.79716966,111640.0,111630.0,0.00646888]
[1756824499250,0.63940966,111640.0,111630.0,0.00646888]
[1756824499480,0.45207966,111640.0,111630.0,0.00666888]
[1756824499686,0.29435966,111640.0,111630.0,0.00666888]
[1756824499897,0.2803316,111640.0,111630.0,0.00666888]
[1756824500941,0.2853816,111640.0,111630.0,0.00646888]
[1756824501147,0.37729759,111640.0,111630.0,0.00646888]
[1756824501358,1.03434348,111640.0,111630.0,0.00646888]
[1756824501791,1.37434348,111640.0,111630.0,0.00646888]
[1756824502197,0.71729759,111640.0,111630.0,0.00646888]
[1756824502420,1.37434348,111640.0,111630.0,0.00646888]
[1756824502832,1.44494348,111640.0,111630.0,0.00646888]
[1756824503046,1.52758264,111640.0,111630.0,0.00646888]
[1756824503271,1.79161067,111640.0,111630.0,1e-08]
[1756824503777,1.79161067,111640.0,111590.0,0.07394631]
[1756824503778,0.17921146,111600.0,111590.0,0.07394631]
[1756824503999,0.18547982,111600.0,111590.0,0.07394631]
[1756824504200,0.18547982,111600.0,111590.0,0.07414631]
[1756824504201,0.28244581,111600.0,111590.0,0.07414631]
[1756824504432,0.28244581,111600.0,111590.0,0.0004]
[1756824504638,0.30939542,111600.0,111590.0,0.0004]
[1756824505071,0.46727542,111600.0,111590.0,0.0016]
[1756824505273,0.30939542,111600.0,111590.0,0.0016]
[1756824505476,0.43724581,111600.0,111590.0,0.0016]
[1756824505772,0.44032581,111600.0,111590.0,0.0016]
[1756824505969,0.28439581,111600.0,111590.0,0.0026]
[1756824506224,0.28636581,111600.0,111590.0,0.0024]
[1756824506425,0.2844029,111600.0,111590.0,0.0026]
[1756824506626,0.31157092,111600.0,111590.0,0.0024]
[1756824507553,0.32985749,111600.0,111590.0,0.0024]
[1756824507766,0.32285749,111600.0,111590.0,0.0004]
[1756824507939,0.31073947,111600.0,111590.0,0.0014]
[1756824509772,0.46837947,111600.0,111590.0,0.0014]
[1756824509983,0.2924529,111600.0,111590.0,0.0016]
[1756824510190,0.4500529,111600.0,111590.0,0.0016]
[1756824510417,0.4500529,111600.0,111590.0,0.0014]
[1756824511050,0.4500129,111600.0,111590.0,0.0016]
[1756824511320,0.2924529,111600.0,111590.0,0.0016]
[1756824511526,0.4500129,111600.0,111590.0,0.0016]
[1756824511702,0.50168759,111600.0,111590.0,0.0016]
[1756824512042,0.4448829,111600.0,111590.0,0.65864589]
[1756824512247,0.2874029,111600.0,111590.0,0.65864589]
[1756824512620,0.2874029,111600.0,111590.0,0.65878636]
[1756824512831,0.2874029,111600.0,111590.0,0.00174047]
[1756824513036,0.19548691,111600.0,111590.0,0.83814388]
[1756824513236,0.19548691,111600.0,111590.0,0.00174047]
[1756824513472,0.19548691,111600.0,111590.0,0.65878636]
[1756824514056,0.34836952,111600.0,111590.0,0.00154047]
[1756824514757,0.2924529,111600.0,111590.0,0.00154047]
[1756824515187,1.28949879,111600.0,111590.0,0.00154047]
[1756824515385,0.6324529,111600.0,111590.0,0.00154047]
[1756824515833,1.28949879,111600.0,111590.0,0.00154047]
[1756824516035,1.38976652,111600.0,111590.0,0.00154047]
[1756824516234,1.48168251,111600.0,111590.0,1e-08]
[1756824516438,0.81663662,111600.0,111590.0,1e-08]
[1756824516726,1.47368251,111600.0,111590.0,1e-08]
[1756824516930,1.48068251,111600.0,111590.0,1e-08]
[1756824517108,1.47368251,111600.0,111590.0,1e-08]
[1756824517311,1.40070534,111600.0,111590.0,1e-08]
[1756824517462,1.45770534,111600.0,111590.0,1e-08]
[1756824517662,1.55209534,111600.0,111590.0,1e-08]
[1756824517891,0.80065945,111600.0,111590.0,1e-08]
[1756824518095,0.17924359,111580.0,111570.0,0.0004]
[1756824518288,0.27743503,111580.0,111570.0,0.00054065]
[1756824518621,0.28248503,111580.0,111570.0,0.00074065]
[1756824518823,0.44898925,111580.0,111570.0,0.00074065]
[1756824519075,0.51732038,111580.0,111570.0,0.00054065]
[1756824519198,0.44898925,111580.0,111570.0,0.00074065]
[1756824519401,0.47594502,111580.0,111570.0,0.00074065]
[1756824519602,0.44898925,111580.0,111570.0,0.00074065]
[1756824519834,0.19955326,111580.0,111570.0,0.65778654]
[1756824520033,0.01327545,111580.0,111570.0,0.83717619]
[1756824520235,0.19251904,111580.0,111570.0,0.99469619]
[1756824520641,0.19251904,111580.0,111570.0,0.83704619]
[1756824520642,0.01327545,111580.0,111570.0,0.83704619]
[1756824520840,0.19351904,111580.0,111570.0,0.99456619]
[1756824521041,0.01427545,111580.0,111570.0,0.99469619]
[1756824522717,0.01427545,111580.0,111570.0,0.83717619]
[1756824522964,0.01427545,111580.0,111570.0,1.43967619]
[1756824523221,0.008,111580.0,111570.0,1.43967619]
[1756824523679,0.008,111580.0,111570.0,1.59719619]
[1756824524155,0.008,111580.0,111570.0,1.710051]
[1756824524399,0.008,111580.0,111570.0,1.552531]
[1756824524585,0.008,111580.0,111570.0,1.710051]
[1756824524791,0.008,111580.0,111570.0,1.552531]
[1756824524946,0.008,111580.0,111570.0,1.710051]
[1756824525762,0.008,111580.0,111570.0,1.447551]
[1756824525959,0.008,111580.0,111570.0,1.290031]
[1756824526282,0.008,111580.0,111570.0,1.17704619]
[1756824526479,0.18724359,111580.0,111570.0,1.33456619]
[1756824526651,0.008,111580.0,111570.0,1.33456619]
[1756824527715,0.18724359,111580.0,111570.0,0.99456619]
[1756824527953,0.28433958,111580.0,111570.0,0.00054065]
[1756824528170,0.32759094,111580.0,111570.0,0.00054065]
[1756824528405,0.28433958,111580.0,111570.0,0.00054065]
[1756824528656,0.2906221,111580.0,111570.0,0.00054065]
[1756824529137,0.4481421,111580.0,111570.0,0.00054065]
[1756824530139,0.5189321,111580.0,111570.0,0.00054065]
[1756824531982,0.5179321,111580.0,111570.0,0.00054065]
[1756824532415,0.2906221,111580.0,111570.0,0.00154065]
[1756824532634,0.2906221,111580.0,111570.0,0.65878654]
[1756824532635,0.19352611,111580.0,111570.0,0.65878654]
[1756824532830,0.18652611,111580.0,111570.0,0.15926065]
[1756824533044,0.18652611,111580.0,111570.0,0.81630654]
[1756824533244,0.19352611,111580.0,111570.0,0.81630654]
[1756824533690,0.01428252,111580.0,111570.0,0.99556619]
[1756824533892,0.19352611,111580.0,111570.0,0.99556619]
[1756824534326,0.01428252,111580.0,111570.0,0.99556619]
[1756824534837,0.01428252,111580.0,111570.0,1.03514528]
[1756824535061,0.01428252,111580.0,111570.0,1.55120009]
[1756824535062,0.008,111580.0,111570.0,1.55120009]
[1756824535692,0.008,111580.0,111570.0,1.55020009]
[1756824535693,0.007,111580.0,111570.0,1.55020009]
[1756824536106,0.008,111580.0,111570.0,1.95120009]
[1756824536308,0.001,111580.0,111570.0,1.95120009]
[1756824536714,0.009,111580.0,111570.0,1.79368009]
[1756824536920,0.009,111580.0,111570.0,1.95120009]
[1756824537254,0.009,111580.0,111570.0,1.79368009]
[1756824537455,0.009,111580.0,111570.0,1.95120009]
[1756824537668,0.009,111580.0,111570.0,1.79355009]
[1756824537883,0.008,111580.0,111570.0,1.27969528]
[1756824538085,0.008,111580.0,111570.0,1.43721528]
[1756824538621,0.009,111580.0,111570.0,1.43821528]
[1756824539414,0.18824359,111580.0,111570.0,1.09821528]
[1756824539616,0.009,111580.0,111570.0,1.09821528]
[1756824540822,0.01095,111580.0,111570.0,0.76143563]
[1756824541083,0.19342359,111580.0,111570.0,1.32106619]
[1756824541319,0.28533958,111580.0,111570.0,0.26404065]
[1756824541507,0.29162274,111580.0,111570.0,0.42156065]
[1756824542062,0.29162274,111580.0,111570.0,0.42056065]
[1756824542260,0.29062274,111580.0,111570.0,0.42056065]
[1756824542737,0.27844274,111580.0,111570.0,1.07880654]
[1756824542869,0.18219359,111580.0,111570.0,0.15902065]
[1756824543067,0.18542359,111580.0,111570.0,0.81606654]
[1756824543272,0.009,111580.0,111570.0,0.99552619]
[1756824543930,0.009,111580.0,111570.0,1.33565619]
[1756824544133,0.009,111580.0,111570.0,1.448511]
[1756824544935,0.009,111580.0,111570.0,1.448381]
[1756824545139,0.009,111580.0,111570.0,1.848511]
[1756824545684,0.009,111580.0,111570.0,1.88966403]
[1756824546348,0.009,111580.0,111570.0,1.91660713]
[1756824546963,0.009,111580.0,111570.0,1.91647713]
[1756824547445,0.009,111580.0,111570.0,1.88953403]
[1756824547660,0.009,111580.0,111570.0,1.48953403]
[1756824547867,0.009,111580.0,111570.0,1.03667922]
[1756824550047,0.009,111580.0,111570.0,1.14966403]
[1756824550268,0.009,111580.0,111570.0,1.48966403]
[1756824550927,0.009,111580.0,111570.0,1.88966403]
[1756824551140,0.009,111580.0,111570.0,1.88953403]
[1756824552086,0.009,111580.0,111570.0,1.88966403]
[1756824552507,0.009,111580.0,111570.0,1.88953403]
[1756824552733,0.009,111580.0,111570.0,1.88966403]
[1756824552922,0.009,111580.0,111570.0,1.48966403]
[1756824553279,0.009,111580.0,111570.0,1.88966403]
[1756824553705,0.009,111580.0,111570.0,1.48966403]
[1756824554167,0.009,111580.0,111570.0,1.88966403]
[1756824555523,0.009,111580.0,111570.0,1.88953403]
[1756824555719,0.009,111580.0,111570.0,1.88966403]
[1756824555976,0.009,111580.0,111570.0,1.91660742]
[1756824556144,0.009,111580.0,111570.0,1.51660742]
[1756824556338,0.009,111580.0,111570.0,1.51647742]
[1756824556699,0.009,111580.0,111570.0,1.91647742]
[1756824557189,0.009,111580.0,111570.0,1.51647742]
[1756824557616,0.009,111580.0,111570.0,1.28159379]
[1756824557814,0.009,111580.0,111570.0,1.28172379]
[1756824558244,0.009,111580.0,111570.0,1.12411379]
[1756824558433,0.009,111580.0,111570.0,1.28155379]
[1756824558783,0.009,111580.0,111570.0,1.12411379]
[1756824558983,0.009,111580.0,111570.0,1.28155379]
[1756824559619,0.009,111580.0,111570.0,1.28168379]
[1756824559827,0.00302,111600.0,111590.0,0.43272752]
[1756824560084,0.17921146,111600.0,111590.0,1.01232978]
[1756824560286,0.00205,111600.0,111590.0,1.01232978]
[1756824560583,0.00507,111600.0,111590.0,1.01232978]
[1756824560784,0.18428146,111600.0,111590.0,1.01232978]
[1756824561105,0.18428146,111600.0,111590.0,0.83310226]
[1756824561313,0.26299146,111600.0,111590.0,0.41094]
[1756824561565,0.35590745,111600.0,111590.0,0.2545]
[1756824561771,0.35590745,111600.0,111590.0,0.41194]
[1756824561894,0.36219446,111600.0,111590.0,0.41194]
[1756824563693,0.36219446,111600.0,111590.0,0.2545]
[1756824565370,0.36219446,111600.0,111590.0,0.67666226]
[1756824566181,0.36219446,111600.0,111590.0,0.85588978]
[1756824566182,0.19956847,111600.0,111590.0,0.85588978]
[1756824566383,0.01407,111600.0,111590.0,0.67666226]
[1756824566592,0.19328146,111600.0,111590.0,0.85588978]
[1756824566793,0.19328146,111600.0,111590.0,0.67666226]
[1756824566997,0.19328146,111600.0,111590.0,0.85588978]
[1756824567620,0.01407,111600.0,111590.0,0.85608978]
[1756824567833,0.009,111600.0,111590.0,0.85608978]
[1756824568033,0.19328146,111600.0,111590.0,0.43372752]
[1756824568264,0.19328146,111600.0,111590.0,0.85588978]
[1756824568462,0.19328146,111600.0,111590.0,0.83410226]
[1756824568643,0.19328146,111600.0,111590.0,1.01332978]
[1756824568848,0.01407,111600.0,111590.0,1.01332978]
[1756824569025,0.01407,111600.0,111590.0,1.01352978]
[1756824569240,0.01407,111600.0,111590.0,1.01332978]
[1756824571091,0.009,111600.0,111590.0,1.01352978]
[1756824571325,0.009,111600.0,111590.0,0.33786752]
[1756824571549,0.009,111600.0,111590.0,0.76002978]
[1756824573837,0.01105,111600.0,111590.0,0.60238978]
[1756824573990,0.01407,111600.0,111590.0,0.75978978]
[1756824574571,0.01407,111600.0,111590.0,0.75998978]
[1756824574779,0.01407,111600.0,111590.0,1.01328978]
[1756824575058,0.01407,111600.0,111590.0,1.01348978]
[1756824575293,0.01407,111600.0,111590.0,1.01328978]
[1756824575800,0.01407,111600.0,111590.0,0.59112752]
[1756824576043,0.19328146,111600.0,111590.0,0.85588978]
[1756824576266,0.19328146,111600.0,111590.0,0.4119]
[1756824576476,0.19328146,111600.0,111590.0,1.01328978]
[1756824577119,0.19328146,111600.0,111590.0,1.01321385]
[1756824577327,0.19328146,111600.0,111590.0,0.59105159]
[1756824577561,0.009,111600.0,111590.0,1.01341385]
[1756824578507,0.009,111600.0,111590.0,0.75991385]
[1756824578706,0.01407,111600.0,111590.0,1.02241385]
[1756824578912,0.01407,111600.0,111590.0,1.02221385]
[1756824579499,0.01407,111600.0,111590.0,1.02241385]
[1756824579950,0.19328146,111600.0,111590.0,1.02221385]
[1756824580153,0.01407,111600.0,111590.0,1.02221385]
[1756824580357,0.19328146,111600.0,111590.0,1.02221385]
[1756824580557,0.19328146,111600.0,111590.0,0.86481385]
[1756824580807,0.01407,111600.0,111590.0,1.02221385]
[1756824581702,0.19328146,111600.0,111590.0,0.26342407]
[1756824581862,0.19328146,111600.0,111590.0,1.02221385]
[1756824582701,0.19328146,111600.0,111590.0,0.84298633]
[1756824582886,0.01407,111600.0,111590.0,0.58048633]
[1756824583165,0.01407,111600.0,111590.0,0.75991385]
[1756824583378,0.009,111600.0,111590.0,0.75991385]
[1756824586148,0.009,111600.0,111590.0,1.2739921]
[1756824586437,0.009,111600.0,111590.0,1.2741221]
[1756824587736,0.009,111600.0,111590.0,0.42979758]
[1756824587962,0.009,111600.0,111590.0,1.2741221]
[1756824588152,0.34294,111630.0,111620.0,0.17917935]
[1756824588357,0.34496,111630.0,111620.0,0.75874161]
[1756824588561,0.5241233,111630.0,111620.0,0.75874161]
[1756824589200,0.34496,111630.0,111620.0,0.75874161]
[1756824589408,0.5241233,111630.0,111620.0,0.75888226]
[1756824589782,0.5261233,111630.0,111620.0,0.76288226]
[1756824590287,0.5281233,111630.0,111620.0,0.77388226]
[1756824591131,0.5281233,111630.0,111620.0,0.78964606]
[1756824591332,0.5281233,111630.0,111620.0,0.45310671]
[1756824591537,0.5281233,111630.0,111620.0,0.18830445]
[1756824591769,0.5281233,111630.0,111620.0,0.61046671]
[1756824592384,0.34602,111630.0,111620.0,0.61046671]
[1756824592584,0.34896,111630.0,111620.0,0.78964606]
[1756824592793,0.34896,111630.0,111620.0,0.3676838]
[1756824593003,0.5281233,111630.0,111620.0,0.78964606]
[1756824594053,0.5281233,111630.0,111620.0,0.45310671]
[1756824594266,0.62003929,111630.0,111620.0,0.59646291]
[1756824595043,0.62003929,111630.0,111620.0,0.43730291]
[1756824595185,0.62003929,111630.0,111620.0,0.59642291]
[1756824595424,0.62003929,111630.0,111620.0,0.61233212]
[1756824596032,0.28003929,111630.0,111620.0,0.59642291]
[1756824596602,0.28003929,111630.0,111620.0,0.43730291]
[1756824596807,0.28003929,111630.0,111620.0,0.01514065]
[1756824597026,0.4747937,111630.0,111620.0,0.01514065]
[1756824597237,0.5718788,111630.0,111620.0,0.01514065]
[1756824597433,0.4129588,111630.0,111620.0,0.01514065]
[1756824597655,0.5718788,111630.0,111620.0,0.01514065]
[1756824598117,0.4129588,111630.0,111620.0,0.01514065]
[1756824598322,0.34927901,111630.0,111620.0,0.42630291]
[1756824598498,0.28432901,111630.0,111620.0,0.42630291]
[1756824598899,0.27603929,111630.0,111620.0,0.60148226]
[1756824599100,0.27803929,111630.0,111620.0,0.60448226]
[1756824599505,0.09887599,111630.0,111620.0,0.60468226]
[1756824599711,0.004,111630.0,111620.0,0.61168226]
[1756824599910,0.1881233,111630.0,111620.0,0.61148226]
[1756824600523,0.1881233,111630.0,111620.0,0.01014065]
[1756824600934,0.1881233,111630.0,111620.0,0.43230291]
[1756824601096,0.19441405,111630.0,111620.0,0.59098291]
[1756824602863,0.1881233,111630.0,111620.0,0.01014065]
[1756824603084,0.31676648,111630.0,111620.0,0.01014065]
[1756824603288,0.8101697,111630.0,111620.0,0.01014065]
[1756824603492,0.38800744,111630.0,111620.0,0.01014065]
[1756824603698,0.99914611,111630.0,111620.0,0.01014065]
[1756824603904,1.03116949,111630.0,111620.0,0.01014065]
[1756824604112,0.41766385,111630.0,111620.0,0.01014065]
[1756824604369,0.51060025,111630.0,111620.0,0.01014065]
[1756824604750,0.93276251,111630.0,111620.0,0.01014065]
[1756824604962,0.44565025,111630.0,111620.0,0.01014065]
[1756824605173,0.28633025,111630.0,111620.0,0.01014065]
[1756824605381,0.28003929,111630.0,111620.0,0.01014065]
[1756824605626,0.28633055,111630.0,111620.0,0.01014065]
[1756824605836,0.1831633,111630.0,111620.0,0.18952]
[1756824606055,0.1831633,111630.0,111620.0,0.01014065]
[1756824606056,0.1881233,111630.0,111620.0,0.01014065]
[1756824606266,0.1881233,111630.0,111620.0,0.16950065]
[1756824606632,0.70220155,111630.0,111620.0,0.01014065]
[1756824606840,0.70849409,111630.0,111620.0,0.01014065]
[1756824607222,0.28633183,111630.0,111620.0,0.01014065]
[1756824609055,0.01029254,111630.0,111620.0,0.18952]
[1756824609295,0.1851133,111630.0,111620.0,0.18952]
[1756824609513,0.1851133,111630.0,111620.0,0.16962065]
[1756824609514,0.1882933,111630.0,111620.0,0.16962065]
[1756824609748,0.28020929,111630.0,111620.0,0.01014065]
[1756824609918,0.28020929,111630.0,111620.0,0.16958065]
[1756824610117,0.28020929,111630.0,111620.0,0.16962065]
[1756824610345,0.28020929,111630.0,111620.0,0.01014065]
[1756824611191,0.28650409,111630.0,111620.0,0.01014065]
[1756824614756,0.77681292,111630.0,111620.0,0.01014065]
[1756824614936,1.24503271,111630.0,111620.0,0.00689065]
[1756824615143,0.17921146,111600.0,111590.0,0.1594]
[1756824615344,0.17921146,111600.0,111590.0,0.15954064]
[1756824615566,0.18116146,111600.0,111590.0,0.16162064]
[1756824616210,0.18116146,111600.0,111590.0,0.15954064]
[1756824616429,0.18216146,111600.0,111590.0,0.16362064]
[1756824616756,0.18021146,111600.0,111590.0,0.16687064]
[1756824616969,0.18021146,111600.0,111590.0,0.34609816]
[1756824617168,0.18021146,111600.0,111590.0,0.16687064]
[1756824617371,0.18216146,111600.0,111590.0,0.16154064]
[1756824617577,0.18916146,111600.0,111590.0,0.16362064]
[1756824618567,0.19234146,111600.0,111590.0,0.00214064]
[1756824618818,0.70641971,111600.0,111590.0,0.00214064]
[1756824619569,0.28107745,111600.0,111590.0,0.00422064]
[1756824619971,0.18916146,111600.0,111590.0,0.00422064]
[1756824620480,0.18721146,111600.0,111590.0,0.00422064]
[1756824620714,0.18721146,111600.0,111590.0,0.00747064]
[1756824621178,0.18721146,111600.0,111590.0,0.18669816]
[1756824622483,0.18916146,111600.0,111590.0,0.00214064]
[1756824622624,0.19234146,111600.0,111590.0,0.16122064]
[1756824623013,0.18916146,111600.0,111590.0,0.16330064]
[1756824623189,0.18721146,111600.0,111590.0,0.16330064]
[1756824623529,0.18721146,111600.0,111590.0,0.34577816]
[1756824623734,0.18721146,111600.0,111590.0,0.16655064]
[1756824623952,0.19234146,111600.0,111590.0,0.00214064]
[1756824624378,0.94175666,111600.0,111590.0,0.16114064]
[1756824624582,0.28425745,111600.0,111590.0,0.00214064]
[1756824624781,1.19896768,111600.0,111590.0,0.00214064]
[1756824625256,1.17359169,111600.0,111590.0,0.00214064]
[1756824625636,0.51605248,111600.0,111590.0,0.00214064]
[1756824626291,0.51605248,111600.0,111590.0,0.00014064]
[1756824626292,0.54200154,111600.0,111590.0,0.00014064]
[1756824626650,0.54300154,111600.0,111590.0,0.00014064]
[1756824626851,0.53600154,111600.0,111590.0,0.00014064]
[1756824627048,0.62791753,111600.0,111590.0,0.00014064]
[1756824627257,1.66207315,111600.0,111590.0,0.00014064]
[1756824627459,1.00457394,111600.0,111590.0,0.00014064]
[1756824627656,1.66207315,111600.0,111590.0,0.00014064]
[1756824628580,1.65507315,111600.0,111590.0,0.00014064]
[1756824628962,1.66207315,111600.0,111590.0,0.00014064]
[1756824629968,1.66107315,111600.0,111590.0,0.00014064]
[1756824630397,1.69309653,111600.0,111590.0,0.00014064]
[1756824630633,1.69381653,111600.0,111590.0,0.00014064]
[1756824631386,0.17924359,111580.0,111570.0,0.00018038]
[1756824631594,1.12948238,111580.0,111570.0,0.00022702]
[1756824631793,1.47461238,111580.0,111570.0,0.00022702]
[1756824632009,1.60283217,111580.0,111570.0,0.00022702]
[1756824632218,1.60283217,111580.0,111570.0,1e-08]
[1756824632219,6.74863458,111580.0,111570.0,1e-08]
[1756824632432,6.90727458,111580.0,111570.0,1e-08]
[1756824632629,6.93693099,111580.0,111560.0,0.0004]
[1756824632853,6.93693099,111580.0,111550.0,1e-08]
[1756824632854,1.44771375,111560.0,111550.0,1e-08]
[1756824633063,2.05816055,111560.0,111550.0,1e-08]
[1756824633294,1.47233134,111560.0,111550.0,1e-08]
[1756824633487,1.48637156,111560.0,111550.0,1e-08]
[1756824634112,1.48629156,111560.0,111550.0,1e-08]
[1756824634347,1.32773156,111560.0,111550.0,1e-08]
[1756824634566,1.36471916,111560.0,111550.0,1e-08]
[1756824634771,1.36571916,111560.0,111550.0,1e-08]
[1756824634968,1.37271916,111560.0,111550.0,1e-08]
[1756824635187,1.20715916,111560.0,111550.0,1e-08]
[1756824635388,1.31395832,111560.0,111550.0,1e-08]
[1756824635591,1.27455406,111560.0,111550.0,1e-08]
[1756824635868,1.48303406,111560.0,111550.0,1e-08]
[1756824636088,1.29253068,111560.0,111550.0,1e-08]
[1756824636300,1.40101068,111560.0,111550.0,1e-08]
[1756824636510,1.45101068,111560.0,111550.0,1e-08]
[1756824636731,0.82061587,111560.0,111550.0,1e-08]
[1756824637174,0.82161587,111560.0,111550.0,1e-08]
[1756824637373,0.82157587,111560.0,111550.0,1e-08]
[1756824637583,0.65995587,111560.0,111550.0,0.00208001]
[1756824637792,0.82153587,111560.0,111550.0,1e-08]
[1756824637995,0.91345186,111560.0,111550.0,1e-08]
[1756824638197,1.57095107,111560.0,111550.0,1e-08]
[1756824639396,1.01929178,111550.0,111540.0,0.0004]
[1756824639612,1.77822201,111550.0,111540.0,0.0004]
[1756824639803,1.84358201,111550.0,111540.0,0.0004]
[1756824640037,2.05003323,111550.0,111540.0,0.0004]
[1756824640263,2.08205661,111550.0,111540.0,0.0004]
[1756824640723,2.08305661,111550.0,111540.0,0.0004]
[1756824640985,2.08305661,111550.0,111520.0,0.00048]
[1756824640986,0.51932394,111530.0,111520.0,0.00048]
[1756824641222,0.51932394,111530.0,111520.0,0.00094908]
[1756824641223,1.43327417,111530.0,111520.0,0.00094908]
[1756824641466,1.43331417,111530.0,111520.0,0.00297908]
[1756824641682,0.77581496,111530.0,111520.0,0.00297908]
[1756824641825,0.80278393,111530.0,111520.0,0.00297908]
[1756824642239,1.30200314,111530.0,111520.0,0.00297908]
[1756824642438,1.46236314,111530.0,111520.0,0.00297908]
[1756824643141,1.46232314,111530.0,111520.0,0.00297908]
[1756824643368,1.96554314,111530.0,111520.0,0.00094908]
[1756824643816,1.81438314,111530.0,111520.0,0.00094908]
[1756824644034,1.97250314,111530.0,111520.0,0.00094908]
[1756824644255,2.06441913,111530.0,111520.0,0.00094908]
[1756824644464,2.12709892,111530.0,111520.0,0.00094908]
[1756824644682,1.4399433,111530.0,111520.0,0.00094908]
[1756824644897,2.06541913,111530.0,111520.0,0.00094908]
[1756824645081,2.05741913,111530.0,111520.0,0.00094908]
[1756824645408,2.05841913,111530.0,111520.0,0.00094908]
[1756824645614,1.80838314,111530.0,111520.0,0.00094908]
[1756824645938,1.96654314,111530.0,111520.0,0.00094908]
[1756824646132,1.96328314,111530.0,111520.0,0.00094908]
[1756824646787,1.81000314,111530.0,111520.0,0.00297908]
[1756824646959,1.15250393,111530.0,111520.0,0.00621908]
[1756824647159,0.97054393,111530.0,111520.0,0.00621908]
[1756824647566,1.62804314,111530.0,111520.0,0.00621908]
[1756824647773,1.71995913,111530.0,111520.0,0.00621908]
[1756824647975,0.97046393,111530.0,111520.0,0.00621908]
[1756824648176,0.87862794,111530.0,111520.0,0.1855591]
[1756824648405,0.87862794,111530.0,111520.0,0.00621908]
[1756824649005,1.63020314,111530.0,111520.0,0.00297908]
[1756824649235,1.62804314,111530.0,111520.0,0.00297908]
[1756824649417,0.72054568,111530.0,111520.0,0.00621908]
[1756824649867,0.72054568,111530.0,111520.0,0.1855591]
[1756824650075,0.54122174,111530.0,111520.0,0.1855591]
[1756824650275,0.508,111530.0,111520.0,0.1855591]
[1756824650478,0.68632394,111530.0,111520.0,0.1855591]
[1756824650681,0.5,111530.0,111520.0,0.1855591]
[1756824650890,0.68032394,111530.0,111520.0,0.1855591]
[1756824651116,0.69358099,111530.0,111520.0,0.1855591]
[1756824651339,0.68658099,111530.0,111520.0,0.1855591]
[1756824651490,0.68558099,111530.0,111520.0,0.1855591]
[1756824651697,0.69258099,111530.0,111520.0,0.1855591]
[1756824651886,0.69358099,111530.0,111520.0,0.1855591]
[1756824652096,0.69358099,111530.0,111520.0,0.00621908]
[1756824652343,0.69358099,111530.0,111520.0,0.1855591]
[1756824652566,0.01425705,111530.0,111520.0,0.1855591]
[1756824653333,0.008,111530.0,111520.0,0.1855591]
[1756824653739,0.18732394,111530.0,111520.0,0.1855591]
[1756824654025,0.18732394,111530.0,111520.0,0.00621908]
[1756824654231,0.19358802,111530.0,111520.0,0.1855591]
[1756824654513,0.19358802,111530.0,111520.0,0.00621908]
[1756824655196,1.03707921,111530.0,111520.0,0.00094908]
[1756824655399,1.04029921,111530.0,111520.0,0.00094908]
[1756824655603,0.3828,111530.0,111520.0,0.00094908]
[1756824655751,0.28550401,111530.0,111520.0,0.00297908]
[1756824655975,0.28550401,111530.0,111520.0,0.00621908]
[1756824656154,0.27850401,111530.0,111520.0,0.00621908]
[1756824656348,0.44686401,111530.0,111520.0,0.00297908]
[1756824656555,0.44470401,111530.0,111520.0,0.00621908]
[1756824656732,0.27850401,111530.0,111520.0,0.00621908]
[1756824656940,0.18658802,111530.0,111520.0,0.1855591]
[1756824657126,0.34466802,111530.0,111520.0,0.00621908]
[1756824657323,0.35266802,111530.0,111520.0,0.00621908]